fUSD/lending_fUSD_20240630
["ID","MTS","AMOUNT","RATE_DAILY","PERIOD"]
[330747340,1719755447830,-500.0,0.00013698,3]
[330747341,1719755447840,-500.0,0.00013698,3]
[330747342,1719755447850,-191.884164,0.00013698,2]
[330747343,1719755447860,-151.0,0.00013698,2]
[330747344,1719755447870,-1044.88,0.00013698,3]
[330747345,1719755447880,-500.0,0.00013698,3]
[330747346,1719755447890,-151.0,0.00013698,2]
[330747347,1719755447901,-191.884164,0.00013698,2]
[330747348,1719755447911,-500.0,0.00013698,3]
[330747349,1719755447922,-508.002238,0.00013698,2]
[330747350,1719755447931,-500.0,0.00013698,3]
[330747351,1719755447941,-151.0,0.00013698,2]
[330747352,1719755447951,-507.13,0.00013698,3]
[330747353,1719755447961,-500.0,0.00013698,3]
[330747354,1719755447970,-508.002238,0.00013698,2]
[330747355,1719755447981,-500.0,0.00013698,3]
[330747356,1719755447992,-500.0,0.00013698,3]
[330747357,1719755448002,-371.87815521,0.00013698,3]
[330747358,1719755448012,-500.0,0.00013698,3]
[330747359,1719755448022,-881.23,0.00013698,3]
[330747360,1719755448032,-517.3,0.00013698,3]
[330747361,1719755448042,-500.0,0.00013698,3]
[330747362,1719755448052,-500.0,0.00013698,3]
[330747363,1719755448062,-500.0,0.00013698,3]
[330747364,1719755448072,-562.18,0.00013698,3]
[330747365,1719755448082,-891.0,0.00013698,3]
[330747366,1719755448092,-957.05,0.00013698,3]
[330747367,1719755448169,-656.4,0.00013698,3]
[330747368,1719755448180,-1173.05,0.00013698,3]
[330747369,1719755448189,-689.57,0.00013698,3]
[330747370,1719755448199,-151.0,0.00013698,2]
[330747371,1719755448208,-500.0,0.00013698,3]
[330747372,1719755448218,-500.0,0.00013698,3]
[330747373,1719755448227,-151.0,0.00013698,2]
[330747374,1719755448236,-1771.17541,0.00013698,2]
[330747375,1719755448246,-507.92,0.00013698,3]
[330747376,1719755448256,-151.0,0.00013698,2]
[330747377,1719755448266,-500.0,0.00013698,3]
[330747378,1719755448275,-500.0,0.00013698,3]
[330747379,1719755448285,-151.0,0.00013698,2]
[330747380,1719755448294,-904.41,0.00013698,3]
[330747381,1719755448303,-544.05,0.00013698,3]
[330747382,1719755448312,-500.0,0.00013698,3]
[330747383,1719755448322,-14122.92,0.00013698,3]
[330747384,1719755448332,-1771.17541,0.00013698,2]
[330747385,1719755448341,-500.0,0.00013698,3]
[330747386,1719755448350,-500.0,0.00013698,3]
[330747387,1719755448360,-500.0,0.00013698,3]
[330747388,1719755448369,-703.63,0.00013698,3]
[330747389,1719755448380,-592.64,0.00013698,3]
[330747390,1719755448389,-500.0,0.00013698,3]
[330747391,1719755448400,-500.0,0.00013698,3]
[330747392,1719755448409,-151.0,0.00013698,2]
[330747393,1719755448418,-500.0,0.00013698,3]
[330747394,1719755448428,-151.0,0.00013698,2]
[330747395,1719755448437,-500.0,0.00013698,3]
[330747396,1719755448448,-151.0,0.00013698,2]
[330747397,1719755448458,-151.0,0.00013698,2]
[330747398,1719755448468,-500.0,0.00013698,3]
[330747399,1719755448479,-759.3,0.00013698,3]
[330747400,1719755448488,-156.261198,0.00013698,2]
[330747401,1719755448498,-500.0,0.00013698,3]
[330747402,1719755448508,-500.0,0.00013698,3]
[330747403,1719755448518,-500.0,0.00013698,3]
[330747404,1719755448528,-151.0,0.00013698,2]
[330747405,1719755448538,-910.64,0.00013698,3]
[330747406,1719755448547,-500.0,0.00013698,3]
[330747407,1719755448558,-500.0,0.00013698,3]
[330747408,1719755448568,-641.73,0.00013698,3]
[330747409,1719755448582,-500.0,0.00013698,3]
[330747410,1719755448594,-544.61,0.00013698,3]
[330747411,1719755448603,-689.38,0.00013698,3]
[330747412,1719755448612,-151.0,0.00013698,2]
[330747413,1719755448622,-590.62,0.00013698,3]
[330747414,1719755448631,-500.0,0.00013698,3]
[330747415,1719755448641,-500.0,0.00013698,3]
[330747416,1719755448651,-151.0,0.00013698,2]
[330747417,1719755448661,-500.0,0.00013698,3]
[330747418,1719755448671,-661.02,0.00013698,3]
[330747419,1719755448681,-2904.97,0.00013698,3]
[330747420,1719755448691,-500.0,0.00013698,3]
[330747421,1719755448701,-500.0,0.00013698,3]
[330747422,1719755448710,-1290.65,0.00013698,3]
[330747423,1719755448719,-507.72,0.00013698,3]
[330747424,1719755448729,-500.0,0.00013698,3]
[330747425,1719755448738,-500.0,0.00013698,3]
[330747426,1719755448748,-158.47,0.00013698,3]
[330747427,1719755448757,-151.0,0.00013698,2]
[330747428,1719755448767,-554.44,0.00013698,3]
[330747429,1719755448777,-500.0,0.00013698,3]
[330747430,1719755448787,-500.0,0.00013698,3]
[330747431,1719755448796,-578.69,0.00013698,3]
[330747432,1719755448807,-151.0,0.00013698,2]
[330747433,1719755448818,-500.0,0.00013698,3]
[330747434,1719755448828,-500.0,0.00013698,3]
[330747435,1719755448838,-151.0,0.00013698,2]
[330747436,1719755448848,-434.467137,0.00013698,2]
[330747437,1719755448857,-655.08,0.00013698,3]
[330747438,1719755448867,-1361.14,0.00013698,3]
[330747439,1719755448877,-500.0,0.00013698,3]
[330747440,1719755448886,-434.467137,0.00013698,2]
[330747441,1719755448897,-500.0,0.00013698,3]
[330747442,1719755448906,-812.49,0.00013698,3]
[330747443,1719755448915,-500.0,0.00013698,3]
[330747444,1719755448924,-500.0,0.00013698,3]
[330747445,1719755448933,-500.0,0.00013698,3]
[330747446,1719755448943,-634.96,0.00013698,3]
[330747447,1719755448952,-500.0,0.00013698,3]
[330747448,1719755448962,-500.0,0.00013698,3]
[330747449,1719755448972,-500.0,0.00013698,3]
[330747450,1719755448982,-500.0,0.00013698,3]
[330747451,1719755448992,-500.0,0.00013698,3]
[330747452,1719755449002,-151.0,0.00013698,2]
[330747453,1719755449011,-208.32626621,0.00013698,2]
[330747454,1719755449020,-896.65,0.00013698,3]
[330747455,1719755449030,-787.92,0.00013698,3]
[330747456,1719755449040,-500.0,0.00013698,3]
[330747457,1719755449050,-151.0,0.00013698,2]
[330747458,1719755449059,-500.0,0.00013698,3]
[330747459,1719755449070,-500.0,0.00013698,3]
[330747460,1719755449079,-1488.55,0.00013698,3]
[330747461,1719755449089,-500.0,0.00013698,3]
[330747462,1719755449099,-500.0,0.00013698,3]
[330747463,1719755449108,-151.0,0.00013698,2]
[330747464,1719755449118,-500.0,0.00013698,3]
[330747465,1719755449128,-500.0,0.00013698,3]
[330747466,1719755449138,-500.0,0.00013698,3]
[330747467,1719755449147,-584.33,0.00013698,3]
[330747468,1719755449156,-1089.27,0.00013698,3]
[330747469,1719755449165,-500.0,0.00013698,3]
[330747470,1719755449175,-500.0,0.00013698,3]
[330747471,1719755449184,-2577.34,0.00013698,3]
[330747472,1719755449194,-500.0,0.00013698,3]
[330747473,1719755449203,-500.0,0.00013698,3]
[330747474,1719755449212,-500.0,0.00013698,3]
[330747475,1719755449222,-500.0,0.00013698,3]
[330747476,1719755449232,-516.98,0.00013698,3]
[330747477,1719755449242,-500.0,0.00013698,3]
[330747478,1719755449252,-1350.77,0.00013698,3]
[330747479,1719755449262,-664.84,0.00013698,3]
[330747480,1719755449271,-500.0,0.00013698,3]
[330747481,1719755449280,-1835.59,0.00013698,3]
[330747482,1719755449290,-500.0,0.00013698,3]
[330747483,1719755449299,-708.48,0.00013698,3]
[330747484,1719755449308,-500.0,0.00013698,3]
[330747485,1719755449318,-910.3,0.00013699,2]
[330747486,1719755449327,-525.835346,0.00013699,2]
[330747487,1719755449337,-525.835346,0.00013699,2]
[330747488,1719755449346,-1799.12,0.00013699,2]
[330747489,1719755449356,-2751.0,0.00013699,2]
[330747490,1719755449365,-321.16,0.00013699,2]
[330747491,1719755449375,-150.0,0.00013699,2]
[330747492,1719755449384,-150.0,0.00013699,2]
[330747493,1719755449394,-150.0,0.00013699,2]
[330747494,1719755449404,-2507.11055748,0.00013702,2]
[330747495,1719755449413,-1135.43,0.00013735,3]
[330747496,1719755449423,-1617.34,0.00013735,3]
[330747497,1719755449432,-1220.92,0.00013735,3]
[330747498,1719755449442,-529.92,0.00013735,3]
[330747499,1719755449452,-1337.79,0.00013735,3]
[330747500,1719755449461,-1162.53,0.00013735,3]
[330747501,1719755449471,-155.2907514,0.00013736,2]
[330747502,1719755449480,-285.75304258,0.00013736,2]
[330747503,1719755449489,-720.35067502,0.00013736,2]
[330747504,1719755449498,-238.13830956,0.00013736,2]
[330747505,1719755449507,-196.20443442,0.00013736,2]
[330747506,1719755449516,-412.61839352,0.00013736,2]
[330747507,1719755449525,-323.82544687,0.00013759,2]
[330747508,1719755449535,-366.11090361,0.00013759,2]
[330747509,1719755449544,-155.35008909,0.00013759,2]
[330747510,1719755449554,-176.62073522,0.00013759,2]
[330747511,1719755449563,-155.0,0.00013759,2]
[330747512,1719755449573,-155.23721439,0.00013759,2]
[330747513,1719755449584,-155.22535542,0.00013759,2]
[330747514,1719755449593,-283.54219834,0.00013759,2]
[330747515,1719755449603,-151.0,0.0001379,2]
[330747516,1719755449613,-27355.82959154,0.0001379,2]
[330747517,1719755449622,-27355.82959151,0.0001379,2]
[330747518,1719755449632,-27355.82959151,0.0001379,2]
[330747519,1719755449642,-27355.82959151,0.0001379,2]
[330747520,1719755449653,-8376.17820472,0.00013799,2]
[330747521,1719755449662,-8376.17820463,0.00013799,2]
[330747522,1719755449672,-8376.17820463,0.00013799,2]
[330747523,1719755449681,-8376.17820463,0.00013799,2]
[330747524,1719755449691,-8376.17820463,0.00013799,2]
[330747525,1719755449701,-182.82973059,0.00013802,2]
[330747526,1719755449710,-258.61409544,0.00013802,2]
[330747527,1719755449720,-155.32769341,0.00013802,2]
[330747528,1719755449729,-325.59685439,0.00013802,2]
[330747529,1719755449738,-437.93383648,0.00013802,2]
[330747530,1719755449748,-242.26461164,0.00013802,2]
[330747531,1719755449757,-155.44134676,0.00013802,2]
[330747532,1719755449767,-202.66041591,0.00013802,2]
[330747533,1719755449777,-155.17180538,0.00013802,2]
[330747534,1719755449786,-500.0,0.00013808,3]
[330747535,1719755449796,-642.55,0.00013808,3]
[330747536,1719755449805,-500.0,0.00013808,3]
[330747537,1719755449815,-151.0,0.00013808,2]
[330747538,1719755449824,-151.0,0.00013808,2]
[330747539,1719755449834,-151.0,0.00013808,2]
[330747540,1719755449844,-151.0,0.00013808,2]
[330747541,1719755449854,-1492.12,0.00013808,3]
[330747542,1719755449863,-151.0,0.00013808,2]
[330747543,1719755449873,-500.0,0.00013808,3]
[330747544,1719755449882,-526.54,0.00013808,3]
[330747545,1719755449893,-500.0,0.00013808,3]
[330747546,1719755449905,-518.76,0.00013808,3]
[330747547,1719755449914,-500.0,0.00013808,3]
[330747548,1719755449924,-500.0,0.00013808,3]
[330747549,1719755449933,-151.0,0.00013808,2]
[330747550,1719755449943,-554.07,0.00013808,3]
[330747551,1719755449953,-500.0,0.00013808,3]
[330747552,1719755449963,-500.0,0.00013808,3]
[330747553,1719755449972,-500.0,0.00013808,3]
[330747554,1719755449983,-500.0,0.00013808,3]
[330747555,1719755449992,-263.87695989,0.00013808,3]
[330747556,1719755450002,-500.0,0.00013808,3]
[330747557,1719755450011,-500.0,0.00013808,3]
[330747558,1719755450022,-500.0,0.00013808,3]
[330747559,1719755450031,-1070.81454078,0.00013808,2]
[330747560,1719755450042,-500.0,0.00013808,3]
[330747561,1719755450051,-500.0,0.00013808,3]
[330747562,1719755450060,-151.0,0.00013808,2]
[330747563,1719755450069,-500.0,0.00013808,3]
[330747564,1719755450079,-500.0,0.00013808,3]
[330747565,1719755450089,-500.0,0.00013808,3]
[330747566,1719755450098,-500.0,0.00013808,3]
[330747567,1719755450108,-500.0,0.00013808,3]
[330747568,1719755450118,-500.0,0.00013808,3]
[330747569,1719755450127,-151.0,0.00013808,2]
[330747570,1719755450137,-500.0,0.00013808,2]
[330747571,1719755450149,-1182.32,0.00013808,3]
[330747572,1719755450158,-500.0,0.00013808,3]
[330747573,1719755450167,-500.0,0.00013808,3]
[330747574,1719755450176,-500.0,0.00013808,3]
[330747575,1719755450185,-500.0,0.00013808,3]
[330747576,1719755450195,-500.0,0.00013808,3]
[330747577,1719755450204,-500.0,0.00013808,3]
[330747578,1719755450213,-500.0,0.00013808,3]
[330747579,1719755450223,-500.0,0.00013808,3]
[330747580,1719755450232,-500.0,0.00013808,3]
[330747581,1719755450243,-151.0,0.00013808,2]
[330747582,1719755450252,-500.0,0.00013808,3]
[330747583,1719755450262,-151.0,0.00013808,2]
[330747584,1719755450272,-500.0,0.00013808,3]
[330747585,1719755450282,-500.0,0.00013808,3]
[330747586,1719755450292,-500.0,0.00013808,3]
[330747587,1719755450302,-505.0,0.00013808,3]
[330747588,1719755450312,-500.0,0.00013808,3]
[330747589,1719755450322,-559.59419054,0.00013808,2]
[330747590,1719755450332,-500.0,0.00013808,3]
[330747591,1719755450342,-500.0,0.00013808,3]
[330747592,1719755450351,-500.0,0.00013808,3]
[330747593,1719755450361,-500.0,0.00013808,3]
[330747594,1719755450371,-151.0,0.00013808,2]
[330747595,1719755450380,-500.0,0.00013808,3]
[330747596,1719755450390,-500.0,0.00013808,3]
[330747597,1719755450401,-500.0,0.00013808,3]
[330747598,1719755450410,-500.0,0.00013808,3]
[330747599,1719755450419,-500.0,0.00013808,3]
[330747600,1719755450428,-500.0,0.00013808,3]
[330747601,1719755450437,-500.0,0.00013808,3]
[330747602,1719755450447,-189.9264,0.00013808,2]
[330747603,1719755450456,-561.37,0.00013808,3]
[330747604,1719755450466,-189.9264,0.00013808,2]
[330747605,1719755450475,-500.0,0.00013808,3]
[330747606,1719755450485,-151.0,0.00013808,2]
[330747607,1719755450494,-500.0,0.00013808,3]
[330747608,1719755450504,-500.0,0.00013808,3]
[330747609,1719755450514,-500.0,0.00013808,3]
[330747610,1719755450523,-500.0,0.00013808,3]
[330747611,1719755450533,-500.0,0.00013808,3]
[330747612,1719755450543,-500.0,0.00013808,3]
[330747613,1719755450552,-500.0,0.00013808,3]
[330747614,1719755450562,-500.0,0.00013808,3]
[330747615,1719755450571,-500.0,0.00013808,3]
[330747616,1719755450583,-900.1,0.00013808,3]
[330747617,1719755450593,-500.0,0.00013808,3]
[330747618,1719755450602,-500.0,0.00013808,3]
[330747619,1719755450611,-500.0,0.00013808,2]
[330747620,1719755450621,-298.427256,0.00013808,2]
[330747621,1719755450630,-500.0,0.00013808,3]
[330747622,1719755450639,-500.0,0.00013808,3]
[330747623,1719755450650,-694.23,0.00013808,3]
[330747624,1719755450660,-500.0,0.00013808,3]
[330747625,1719755450669,-151.0,0.00013808,2]
[330747626,1719755450678,-500.0,0.00013808,3]
[330747627,1719755450691,-177.03314136,0.00013808,3]
[330747628,1719755450700,-500.0,0.00013808,3]
[330747629,1719755450709,-460.02478493,0.00013808,3]
[330747630,1719755450718,-500.0,0.00013808,3]
[330747631,1719755450727,-554.48,0.00013808,3]
[330747632,1719755450735,-500.0,0.00013808,3]
[330747633,1719755450744,-500.0,0.00013808,3]
[330747634,1719755450753,-500.0,0.00013808,3]
[330747635,1719755450762,-500.0,0.00013808,3]
[330747636,1719755450771,-500.0,0.00013808,3]
[330747637,1719755450781,-500.0,0.00013808,3]
[330747638,1719755450790,-151.0,0.00013808,2]
[330747639,1719755450799,-151.0,0.00013808,2]
[330747640,1719755450808,-151.0,0.00013808,2]
[330747641,1719755450817,-500.0,0.00013808,3]
[330747642,1719755450827,-500.0,0.00013808,3]
[330747643,1719755450835,-500.0,0.00013808,3]
[330747644,1719755450844,-500.0,0.00013808,3]
[330747645,1719755450854,-182.861239,0.00013808,2]
[330747646,1719755450865,-500.0,0.00013808,3]
[330747647,1719755450875,-500.0,0.00013808,3]
[330747648,1719755450883,-182.861239,0.00013808,2]
[330747649,1719755450892,-151.0,0.00013808,2]
[330747650,1719755450904,-500.0,0.00013808,3]
[330747651,1719755450913,-194.6148,0.00013808,2]
[330747652,1719755450922,-500.0,0.00013808,3]
[330747653,1719755450931,-151.0,0.00013808,2]
[330747654,1719755450940,-500.0,0.00013808,3]
[330747655,1719755450950,-500.0,0.00013808,2]
[330747656,1719755450960,-194.6148,0.00013808,2]
[330747657,1719755450970,-500.0,0.00013808,3]
[330747658,1719755450979,-151.0,0.00013808,2]
[330747659,1719755450989,-151.0,0.00013808,2]
[330747660,1719755450998,-500.0,0.00013808,3]
[330747661,1719755451007,-151.0,0.00013808,2]
[330747662,1719755451016,-151.0,0.00013808,2]
[330747663,1719755451025,-593.15,0.00013808,3]
[330747664,1719755451034,-500.0,0.00013808,3]
[330747665,1719755451043,-500.0,0.00013808,3]
[330747666,1719755451052,-500.0,0.00013808,3]
[330747667,1719755451061,-500.0,0.00013808,3]
[330747668,1719755451070,-500.0,0.00013808,3]
[330747669,1719755451079,-500.0,0.00013808,3]
[330747670,1719755451088,-500.0,0.00013808,3]
[330747671,1719755451098,-500.0,0.00013808,2]
[330747672,1719755451108,-500.0,0.00013808,3]
[330747673,1719755451117,-500.0,0.00013808,3]
[330747674,1719755451127,-500.0,0.00013808,3]
[330747675,1719755451137,-500.0,0.00013808,3]
[330747676,1719755451148,-690.44,0.00013808,3]
[330747677,1719755451158,-500.0,0.00013808,3]
[330747678,1719755451168,-502.26,0.00013808,3]
[330747679,1719755451177,-500.0,0.00013808,3]
[330747680,1719755451187,-500.0,0.00013808,3]
[330747681,1719755451196,-500.0,0.00013808,3]
[330747682,1719755451205,-500.0,0.00013808,3]
[330747683,1719755451215,-500.0,0.00013808,3]
[330747684,1719755451224,-500.0,0.00013808,3]
[330747685,1719755451234,-500.0,0.00013808,3]
[330747686,1719755451243,-500.0,0.00013808,3]
[330747687,1719755451253,-500.0,0.00013808,3]
[330747688,1719755451263,-500.0,0.00013808,3]
[330747689,1719755451273,-500.0,0.00013808,3]
[330747690,1719755451282,-500.0,0.00013808,3]
[330747691,1719755451292,-337.62,0.00013808,3]
[330747692,1719755451302,-151.0,0.00013808,2]
[330747693,1719755451311,-757.41,0.00013808,3]
[330747694,1719755451321,-500.0,0.00013808,3]
[330747695,1719755451330,-151.0,0.00013808,2]
[330747696,1719755451340,-500.0,0.00013808,3]
[330747697,1719755451349,-715.47,0.00013808,3]
[330747698,1719755451358,-500.0,0.00013808,3]
[330747699,1719755451368,-621.83,0.00013808,3]
[330747700,1719755451377,-500.0,0.00013808,3]
[330747701,1719755451386,-500.0,0.00013808,3]
[330747702,1719755451395,-571.76,0.00013808,3]
[330747703,1719755451406,-500.0,0.00013808,3]
[330747704,1719755451415,-705.69,0.00013808,3]
[330747705,1719755451426,-500.0,0.00013808,3]
[330747706,1719755451435,-500.0,0.00013808,3]
[330747707,1719755451445,-500.0,0.00013808,3]
[330747708,1719755451454,-363.04,0.00013808,3]
[330747709,1719755451463,-500.0,0.00013808,3]
[330747710,1719755451472,-500.0,0.00013808,3]
[330747711,1719755451482,-500.0,0.00013808,3]
[330747712,1719755451491,-500.0,0.00013808,3]
[330747713,1719755451501,-166.844814,0.00013808,2]
[330747714,1719755451511,-532.86,0.00013808,3]
[330747715,1719755451521,-166.844814,0.00013808,2]
[330747716,1719755451531,-675.41,0.00013808,3]
[330747717,1719755451540,-581.61,0.00013808,3]
[330747718,1719755451550,-663.09,0.00013808,3]
[330747719,1719755451560,-500.0,0.00013808,3]
[330747720,1719755451570,-500.0,0.00013808,3]
[330747721,1719755451584,-577.38,0.00013808,3]
[330747722,1719755451593,-500.0,0.00013808,3]
[330747723,1719755451602,-500.0,0.00013808,3]
[330747724,1719755451612,-493.98,0.00013808,3]
[330747725,1719755451622,-500.0,0.00013808,3]
[330747726,1719755451631,-500.0,0.00013808,3]
[330747727,1719755451641,-500.0,0.00013808,3]
[330747728,1719755451652,-168.491002,0.00013808,2]
[330747729,1719755451661,-540.81,0.00013808,3]
[330747730,1719755451671,-500.0,0.00013808,3]
[330747731,1719755451682,-168.491002,0.00013808,2]
[330747732,1719755451692,-500.0,0.00013808,3]
[330747733,1719755451702,-718.0,0.00013808,3]
[330747734,1719755451711,-574.88,0.00013808,3]
[330747735,1719755451722,-500.0,0.00013808,3]
[330747736,1719755451731,-652.08,0.00013808,3]
[330747737,1719755451741,-500.0,0.00013808,3]
[330747738,1719755451751,-500.0,0.00013808,3]
[330747739,1719755451760,-500.0,0.00013808,3]
[330747740,1719755451769,-920.11,0.00013808,3]
[330747741,1719755451779,-695.25,0.00013808,3]
[330747742,1719755451788,-525.835346,0.00013808,2]
[330747743,1719755451798,-500.0,0.00013808,3]
[330747744,1719755451807,-525.835346,0.00013808,2]
[330747745,1719755451817,-510.24,0.00013808,3]
[330747746,1719755451827,-500.0,0.00013808,3]
[330747747,1719755451836,-605.83,0.00013808,3]
[330747748,1719755451846,-677.83,0.00013808,3]
[330747749,1719755451855,-500.0,0.00013808,3]
[330747750,1719755451865,-151.0,0.00013808,2]
[330747751,1719755451874,-500.0,0.00013808,3]
[330747752,1719755451883,-500.0,0.00013808,3]
[330747753,1719755451892,-581.28,0.00013808,3]
[330747754,1719755451902,-151.0,0.00013808,2]
[330747755,1719755451911,-500.0,0.00013808,3]
[330747756,1719755451920,-812.74,0.00013808,3]
[330747757,1719755451929,-500.0,0.00013808,3]
[330747758,1719755451939,-701.39,0.00013808,3]
[330747759,1719755451948,-620.73,0.00013808,3]
[330747760,1719755451958,-500.0,0.00013808,3]
[330747761,1719755451968,-500.0,0.00013808,3]
[330747762,1719755451977,-500.0,0.00013808,3]
[330747763,1719755451988,-500.0,0.00013808,3]
[330747764,1719755451998,-500.0,0.00013808,3]
[330747765,1719755452007,-188.75,0.00013808,2]
[330747766,1719755452016,-181.43875203,0.00013808,3]
[330747767,1719755452025,-500.0,0.00013808,3]
[330747768,1719755452034,-188.75,0.00013808,2]
[330747769,1719755452043,-553.86,0.00013808,3]
[330747770,1719755452053,-151.0,0.00013808,2]
[330747771,1719755452062,-621.88,0.00013808,3]
[330747772,1719755452071,-500.0,0.00013808,3]
[330747773,1719755452080,-500.0,0.00013808,3]
[330747774,1719755452090,-500.0,0.00013808,3]
[330747775,1719755452100,-500.0,0.00013808,3]
[330747776,1719755452109,-151.0,0.00013808,2]
[330747777,1719755452118,-500.0,0.00013808,3]
[330747778,1719755452128,-500.0,0.00013808,3]
[330747779,1719755452137,-151.0,0.00013808,2]
[330747780,1719755452146,-500.0,0.00013808,3]
[330747781,1719755452155,-500.0,0.00013808,3]
[330747782,1719755452165,-500.0,0.00013808,3]
[330747783,1719755452175,-151.0,0.00013808,2]
[330747784,1719755452184,-612.92,0.00013808,3]
[330747785,1719755452195,-522.24,0.00013808,3]
[330747786,1719755452206,-500.0,0.00013808,3]
[330747787,1719755452215,-500.0,0.00013808,3]
[330747788,1719755452225,-151.0,0.00013808,2]
[330747789,1719755452234,-1832.16,0.00013808,3]
[330747790,1719755452244,-500.0,0.00013808,3]
[330747791,1719755452254,-151.0,0.00013808,2]
[330747792,1719755452263,-1755.82,0.00013808,3]
[330747793,1719755452273,-681.93,0.00013808,3]
[330747794,1719755452283,-500.0,0.00013808,3]
[330747795,1719755452293,-500.0,0.00013808,3]
[330747796,1719755452303,-562.52,0.00013808,3]
[330747797,1719755452313,-500.0,0.00013808,3]
[330747798,1719755452323,-500.0,0.00013808,3]
[330747799,1719755452333,-151.0,0.00013808,2]
[330747800,1719755452343,-232.30223,0.00013808,2]
[330747801,1719755452352,-1263.58,0.00013808,3]
[330747802,1719755452363,-500.0,0.00013808,3]
[330747803,1719755452373,-248.43,0.00013808,3]
[330747804,1719755452382,-757.31,0.00013808,3]
[330747805,1719755452392,-1210.93,0.00013808,3]
[330747806,1719755452403,-500.0,0.00013808,3]
[330747807,1719755452412,-631.07,0.00013808,3]
[330747808,1719755452422,-656.95,0.00013808,3]
[330747809,1719755452432,-738.1,0.00013808,3]
[330747810,1719755452442,-500.0,0.00013808,3]
[330747811,1719755452452,-500.0,0.00013808,3]
[330747812,1719755452462,-561.72,0.00013808,3]
[330747813,1719755452472,-500.0,0.00013808,3]
[330747814,1719755452484,-576.94,0.00013808,3]
[330747815,1719755452493,-500.0,0.00013808,3]
[330747816,1719755452503,-500.0,0.00013808,3]
[330747817,1719755452513,-500.0,0.00013808,3]
[330747818,1719755452523,-151.0,0.00013808,2]
[330747819,1719755452532,-500.0,0.00013808,3]
[330747820,1719755452542,-500.0,0.00013808,3]
[330747821,1719755452551,-623.674199,0.00013808,2]
[330747822,1719755452561,-748.82,0.00013808,3]
[330747823,1719755452571,-513.03,0.00013808,3]
[330747824,1719755452584,-500.0,0.00013808,3]
[330747825,1719755452593,-151.0,0.00013808,2]
[330747826,1719755452603,-623.674199,0.00013808,2]
[330747827,1719755452613,-851.99,0.00013808,3]
[330747828,1719755452623,-590.03,0.00013808,3]
[330747829,1719755452633,-1993.43,0.00013808,3]
[330747830,1719755452642,-151.0,0.00013808,2]
[330747831,1719755452655,-704.42,0.00013808,3]
[330747832,1719755452666,-525.63,0.00013808,3]
[330747833,1719755452677,-151.0,0.00013808,2]
[330747834,1719755452686,-500.0,0.00013808,3]
[330747835,1719755452696,-500.0,0.00013808,3]
[330747836,1719755452706,-833.5,0.00013808,3]
[330747837,1719755452715,-151.0,0.00013808,2]
[330747838,1719755452725,-500.0,0.00013808,3]
[330747839,1719755452734,-500.0,0.00013808,3]